Cogmind - Beta 17 @@@ ROGUE MODE // 2026.07.01 @ 20:25:39 Player: Vikcy6666 Result: Destroyed by D-53 Grenadier with Mini Grenade Launcher Performance ------------- Evolutions (1) 500 Regions Visited (3) 600 Robots Destroyed (28) 140 Value Destroyed (503) 503 Prototype IDs (0) 0 Alien Tech Used (0) 0 Bonus (0) 0 TOTAL SCORE: 1743 Bonus ------- None Cogmind --------- Core Integrity 0/400 Matter 253/300 Energy 115/265 System Corruption 0% Temperature Cool (0) Movement Walking (120) Location -9/Mines Parts ------- > --- POWER (1) -------- Improved Ion Engine > --- PROPULSION (3) --- Aluminum Leg > --- UTILITY (3) ------ Terrain Scan Processor > --- WEAPON (2) ------- Assault Rifle > --- INVENTORY (5) ---- Improved Ion Engine Peak State ------------ > --- POWER ------------ Improved Ion Engine > --- PROPULSION ------- Aluminum Leg Aluminum Leg Aluminum Leg > --- UTILITY ---------- Small Storage Unit Terrain Scan Processor Tractor Beam > --- WEAPON ----------- Heavy Assault Rifle Mini Grenade Launcher > --- INVENTORY -------- Improved Ion Engine Improved Ion Engine Improved Ion Engine Improved Ion Engine Light Treads Light Treads EM Pulse Gun Assault Rifle [Rating: 14] Favorites ----------- Power Ion Engine Engine Ion Engine Propulsion Aluminum Leg Leg Aluminum Leg Utility Small Storage Unit Device Tractor Beam Storage Small Storage Unit Processor Terrain Scan Processor Weapon Mini Grenade Launcher Energy Gun EM Pulse Gun Energy Cannon Light EM Pulse Cannon Ballistic Gun Assault Rifle Launcher Mini Grenade Launcher Build | -11 -10 -9 -9 ------- Run | Yrd Mat Mat Min Slots Evolved 2 | . . 2 . Power . | . . . . Propulsion 1 | . . 1 . Utility 1 | . . 1 . Weapon . | . . . . Parts Attached 22 | 6 4 9 3 Power 4 | 1 . 1 2 Engine 4 | 1 . 1 2 Core . | . . . . Reactor . | . . . . Propulsion 4 | 2 . 2 . Treads . | . . . . Leg 4 | 2 . 2 . Wheel . | . . . . Hover . | . . . . Flight . | . . . . Utility 7 | 1 3 3 . Device 4 | . 2 2 . Storage 2 | 1 1 . . Processor 1 | . . 1 . Hackware . | . . . . Protection . | . . . . Artifact . | . . . . Weapon 7 | 2 1 3 1 Energy Gun 1 | . . . 1 Energy Cannon 1 | . . 1 . Ballistic Gun 4 | 2 1 1 . Ballistic Cannon . | . . . . Launcher 1 | . . 1 . Special Weapon . | . . . . Impact Weapon . | . . . . Slashing Weapon . | . . . . Piercing Weapon . | . . . . Special Melee Weapon . | . . . . Unidentified Prototypes . | . . . . Parts Lost 10 | . . 1 9 Power 2 | . . . 2 Propulsion 2 | . . . 2 Utility 3 | . . 1 2 Weapon 3 | . . . 3 Highest Loss Streak 9 | . . 1 9 To Critical Strikes . | . . . . Average Backups 6 | 3 6 7 4 Power 2 | . 1 3 2 Propulsion 3 | 2 4 2 . Utility . | . . . . Weapon 1 | . . 1 1 Tool/Special . | . . . . Unused Backups 9 | . 1 7 1 Power 4 | . . 3 1 Propulsion 4 | . . 4 . Utility . | . . . . Weapon 1 | . 1 . . Tool/Special . | . . . . Average Slot Usage (%) 92 | . 89 96 83 Engine 12 | . 14 11 11 Leg 29 | . 28 31 25 Device 13 | . 4 19 14 Storage 10 | . 14 10 . Processor 1 | . . 1 11 Energy Cannon 3 | . . 6 . Ballistic Gun 13 | . 28 4 11 Launcher 6 | . . 10 9 Peak Build Rating 14 | 6 7 14 13 Average Rating 9 | 3 6 11 11 On Entrance 6 | . 6 7 13 Avg Prop Armor Cover (%) . | . . . . Naked Turns . | . . . . Heaviest Build 19 | 13 14 19 13 Greatest Support 30 | 20 20 30 30 Greatest Overweight (x) . | . . . . Average Overweight (x) . | . . . . Largest Inventory Capacity 8 | 8 8 8 5 Average Capacity 7 | 6 8 7 5 Most Carried 8 | 6 8 8 5 Average Carried 6 | 3 6 7 4 Final Capacity 8 | 8 8 5 5 Final Carried 8 | 6 8 5 1 Class Distribution -------------------- 88% | Mutant 11% | Scavenger-Mutant Dominant Class ---------------- Mutant | -10/Materials Mutant | -9/Materials Scavenger-Mutant | -9/Mines Resources | -11 -10 -9 -9 ----------- Run | Yrd Mat Mat Min Matter Collected 777 | 227 245 298 7 Remotely 283 | . 15 268 . Salvage Created 825 | . 380 439 6 Parts 57 | . 24 31 2 Haulers Intercepted . | . . . . Recyclers Shooed 1 | . . 1 . Parts Field Recycled . | . . . . Retrieved Matter . | . . . . Parts Self-Destructed . | . . . . Prevented . | . . . . Parts Restored . | . . . . Kills | -11 -10 -9 -9 ------- Run | Yrd Mat Mat Min Combat Hostiles Destroyed 13 | . 7 6 . Guns 7 | . 7 . . Cannons 2 | . . 2 . AOE 4 | . . 4 . Classes Destroyed 10 | . 4 5 1 Worker 3 | . . 3 . Builder 2 | . . 2 . Tunneler 1 | . . . 1 Recycler 4 | . 2 2 . Mechanic 1 | . . 1 . Operator 1 | . . 1 . Watcher 3 | . 2 1 . Swarmer 6 | . 6 . . Grunt 6 | . 1 5 . Sentry 1 | . . 1 . Best Kill Streak 12 | . 7 12 1 Combat Bots Only 6 | . 6 2 . Max Kills in Single Turn 2 | . 1 2 1 Gunslinging . | . . . . Exploded 1 | . . 1 . Melee . | . . . . Uniques/NPCs Destroyed . | . . . . Combat | -11 -10 -9 -9 -------- Run | Yrd Mat Mat Min Hostile Shots Fired 84 | . 54 8 22 Missed 17 | . 11 2 4 Hits 67 | . 43 6 18 Projectile 67 | . 43 6 18 AOE 25 | . . . 25 Damage Taken 1544 | . 358 185 1001 Core 510 | . 95 39 376 Absorbed by Shields . | . . . . Regen/Repaired (Parts) 112 | . . 112 . Core Remaining (%) 81 | 100 62 . . Volleys Fired 77 | . 43 29 5 Largest 2 | . 2 2 2 Hottest 86 | . 40 86 60 Shots Fired 128 | . 86 32 10 Gun 104 | . 86 12 6 Cannon 5 | . . 5 . Launcher 19 | . . 15 4 Special . | . . . . Kinetic 103 | . 86 12 5 Thermal . | . . . . Explosive 19 | . . 15 4 Electromagnetic 6 | . . 5 1 Robot Hit Streak 8 | . 7 8 4 Robot Miss Streak 7 | . 7 3 1 Penetration Max . | . . . . Secondary Targets 4 | . 4 . . Max Gunslinging Chain 1 | . 1 . . Shots Hit Robots 66 | . 47 11 8 Core Hits 41 | . 16 20 5 Critical Kills . | . . . . Critical Parts Destroyed . | . . . . Critical Strikes . | . . . . Melee Attacks . | . . . . Impact . | . . . . Slashing . | . . . . Piercing . | . . . . Sneak Attacks . | . . . . Combat Hostiles . | . . . . Follow-up Attacks . | . . . . Damage Inflicted 1501 | . 509 823 169 Guns 685 | . 509 106 70 Cannons 90 | . . 90 . Explosions 726 | . . 627 99 Melee . | . . . . Ramming . | . . . . Kinetic 674 | . 509 106 59 Thermal 47 | . . 47 . Explosive 679 | . . 580 99 Electromagnetic 101 | . . 90 11 Impact . | . . . . Slashing . | . . . . Piercing . | . . . . Highest Corruption . | . . . . Average Corruption . | . . . . Corruption Purged . | . . . . Corruption Blocked . | . . . . Overload Shots . | . . . . Overflow Damage 60 | . . 60 . Projectiles . | . . . . Explosions 60 | . . 60 . Melee . | . . . . Knockbacks . | . . . . Impact . | . . . . Kinetic . | . . . . Secondary . | . . . . Self-Inflicted Damage 114 | . . 114 . Shots 4 | . . 4 . Rammed . | . . . . Targets Rammed . | . . . . Kicked . | . . . . Crushed . | . . . . Highest Temperature 8 | . 6 8 . Average Temperature 6 | . 6 6 . Received Heat Transfer 75 | . 36 39 . Siege Activations . | . . . . Martial Activations . | . . . . Shielding Activations . | . . . . Robots Disrupted . | . . . . Combat Hostiles . | . . . . Robots Corrupted . | . . . . Combat Hostiles . | . . . . Parts Fried . | . . . . Impact Corruptions . | . . . . Robots Melted . | . . . . Combat Hostiles . | . . . . Parts Melted . | . . . . Heat Transferred 100 | . . 100 . Parts Sabotaged . | . . . . Parts Stolen . | . . . . Parts Stripped . | . . . . Power Chain Reactions 1 | . . 1 . Alert | -11 -10 -9 -9 ------- Run | Yrd Mat Mat Min Maximum Alert Level 1 | . . 1 . Low Security (%) 86 | 100 100 73 100 Level 1 13 | . . 26 . Level 2 . | . . . . Level 3 . | . . . . Level 4 . | . . . . Level 5 . | . . . . High Security . | . . . . Max Security . | . . . . Peak Influence 294 | . 147 294 108 Initial 108 | . . 41 108 Average 101 | . 90 130 82 Influence Increases 653 | . 209 428 16 Destroy 0b10 Robot/C 260 | . 140 120 . Destroy 0b10 Robot/NC 75 | . 20 50 5 Destroy Leader 76 | . 34 42 . Successful Hack 3 | . . 3 . Disable Machine 90 | . . 90 . Destroy Structure 134 | . . 123 11 Lose Combat Pursuer 15 | . 15 . . Influence Decreases 639 | . 110 248 281 Entered New Map 229 | . . 58 171 Time Decay 310 | . 110 180 20 Lost Part 100 | . . 10 90 Squads Dispatched 3 | . 1 2 . Investigation 1 | . . 1 . Extermination . | . . . . Reinforcement 2 | . 1 1 . Assault . | . . . . Garrison . | . . . . Intercept . | . . . . Searches Triggered . | . . . . Construction Impeded . | . . . . Haulers Reinforced . | . . . . Active Scanning Responses . | . . . . Cargo Convoy Interrupts . | . . . . Stealth | -11 -10 -9 -9 --------- Run | Yrd Mat Mat Min Distress Signals 6 | . 3 3 . Communications Jammed . | . . . . Distress Signals . | . . . . Times Spotted 27 | . 15 10 2 Peak Tracking Total 9 | . 9 3 2 Tactical Retreats 1 | . 1 . . Traps | -11 -10 -9 -9 ------- Run | Yrd Mat Mat Min Traps Triggered . | . . . . Indirectly . | . . . . Trap Hack Attempts . | . . . . Triggered . | . . . . Disarmed . | . . . . Reprogrammed . | . . . . Reused . | . . . . Traps Extracted . | . . . . Installed . | . . . . Triggered . | . . . . Machines | -11 -10 -9 -9 ---------- Run | Yrd Mat Mat Min Machines Disabled 6 | . . 6 . Max in Single Turn 2 | . . 2 . Machines Repaired . | . . . . Machines Dismantled . | . . . . Machines Sabotaged . | . . . . Overloaded Fab Kills . | . . . . Hacking | -11 -10 -9 -9 --------- Run | Yrd Mat Mat Min Machines Accessed 1 | . . 1 . Terminals . | . . . . Fabricators . | . . . . Repair Stations 1 | . . 1 . Recycling Units . | . . . . Scanalyzers . | . . . . Garrison Access . | . . . . Total Hacks 8 | . . 8 . Successful 5 | . . 5 . Failed 3 | . . 3 . Catastrophic . | . . . . Database Lockouts . | . . . . Manual . | . . . . Terminals . | . . . . Fabricators . | . . . . Repair Stations 8 | . . 8 . Recycling Units . | . . . . Scanalyzers . | . . . . Garrison Access . | . . . . Terminal Hacks . | . . . . Fabricator Hacks . | . . . . Repair Station Hacks 5 | . . 5 . Scan Component 3 | . . 3 . Repair 2 | . . 2 . Recycling Unit Hacks . | . . . . Scanalyzer . | . . . . Garrison Access Hacks . | . . . . Unauthorized Hacks . | . . . . Terminals . | . . . . Fabricators . | . . . . Repair Stations . | . . . . Recycling Units . | . . . . Scanalyzers . | . . . . Garrison Access . | . . . . Data Cores Recovered . | . . . . Used . | . . . . Hacking Detections 1 | . . 1 . Full Trace Events 1 | . . 1 . Feedback Events . | . . . . Feedback Blocked . | . . . . Robot Schematics Acquired . | . . . . Robots Built . | . . . . Authchips . | . . . . Time . | . . . . Total Robot Build Rating . | . . . . Part Schematics Acquired . | . . . . Parts Built . | . . . . Authchips . | . . . . Time . | . . . . Total Part Build Rating . | . . . . Part Studies Acquired . | . . . . Parts Repaired 2 | . . 2 . Time 52 | . . 52 . Parts Recycled . | . . . . Recycled Matter . | . . . . Retrieved Matter . | . . . . Retrieved Components . | . . . . Parts Scanalyzed . | . . . . Part Schematics Acquired . | . . . . Parts Damaged . | . . . . Bothacking | -11 -10 -9 -9 ------------ Run | Yrd Mat Mat Min Used RIF Installer . | . . . . Robots Hacked . | . . . . Non-combat . | . . . . Combat . | . . . . Robot Hacks Applied . | . . . . Relay Couplers Released . | . . . . Fabnet Peak Effective % . | . . . . Robots Rewired . | . . . . Allies Hacked . | . . . . Hacks Repelled . | . . . . Allies | -11 -10 -9 -9 -------- Run | Yrd Mat Mat Min Total Allies . | . . . . Largest Group . | . . . . Highest-Rated Group . | . . . . Highest-Rated Ally . | . . . . Total Orders . | . . . . Ally Attacks . | . . . . Total Damage . | . . . . Kills . | . . . . Allies Corrupted . | . . . . Allies Melted . | . . . . Intel | -11 -10 -9 -9 ------- Run | Yrd Mat Mat Min Active Infowar (turns) 46 | . . 16 30 Structural 46 | . . 16 30 Robot Analysis Total . | . . . . Derelict Logs Recovered . | . . . . Drone Launches . | . . . . Drone Recoveries . | . . . . Exploration | -11 -10 -9 -9 ------------- Run | Yrd Mat Mat Min Turns Passed 760 | 70 262 378 50 Spaces Moved 339 | 48 108 167 16 Core 6 | 6 . . . Treads . | . . . . Legs 333 | 42 108 167 16 Wheels . | . . . . Hover . | . . . . Flight . | . . . . Fastest Speed 50 | 50 120 120 120 Average Speed 118 | 111 120 120 120 Slowest Speed 120 | 120 120 120 120 Overloaded Moves . | . . . . Propulsion Burnouts . | . . . . Robots Hopped . | . . . . Potential Cave-ins . | . . . . Cave-ins Triggered . | . . . . Exploration Rate (%) 13 | 3 17 22 12 Regions Visited 3 Branch Regions 1 Pre-discovered Areas . | . . . . Known Exits Taken . | . . . . Unknown Exits Taken 3 | 1 1 1 . Scrap Searched . | . . . . Spaces Dug . | . . . . Terrain Destroyed 175 | . . 158 17 Melee . | . . . . Projectile . | . . . . AOE 175 | . . 158 17 Terrain Rammed . | . . . . Walls Destroyed . | . . . . Machines Disabled . | . . . . Actions | -11 -10 -9 -9 --------- Run | Yrd Mat Mat Min Total 580 | 64 164 315 37 Wait 99 | . 1 86 12 Move 336 | 47 107 166 16 Hop . | . . . . Pick Up 24 | 11 5 8 . Fast Attach 9 | 1 2 6 . Attach 13 | 5 2 2 4 Detach . | . . . . Swap 4 | . . 4 . Drop 18 | . 4 14 . Fire 77 | . 43 29 5 Melee . | . . . . Ram . | . . . . Kick . | . . . . Crush . | . . . . Escape Stasis . | . . . . Rewire . | . . . . Trap . | . . . . Miscellaneous . | . . . . Route ------- -11/Scrapyard -10/Materials -9/Materials -9/Mines History --------- Turn | Location | Event 9 | -11/Scrapyard | Discovered new exit (range 14) 71 | -11/Scrapyard | Entered Materials 307 | -10/Materials | Build established: Mutant 320 | -10/Materials | Discovered new exit (range 11) 333 | -10/Materials | Entered another Materials area 333 | -9/Materials | Evolved 2 slots: Propulsion x1, Utility x1 439 | -9/Materials | Repaired Aluminum Leg 466 | -9/Materials | Repaired Aluminum Leg 659 | -9/Materials | Discovered new exit (range 16) 711 | -9/Materials | Entered Mines 712 | -9/Mines | Assembled infested the area 717 | -9/Mines | Assisted by a Guerilla fighting off Assembled 754 | -9/Mines | Core integrity fell below 50% 761 | -9/Mines | Core integrity fell below 20% 761 | -9/Mines | Destroyed by D-53 Grenadier with Mini Grenade Launcher Last Messages --------------- 00739_ D-53 Grenadier knocked back. 00739_ V2-HCD(h) destroyed. 00739_ Acquired 3 matter. 00741_ Acquired 4 matter. 00741_ Structural Scanner destroyed. 00742_ Heat Sink destroyed. 00745_ Aluminum Leg destroyed. 00747_ The unstable cave ceiling collapses. 00747_ Imp. Ion Engine destroyed. 00747_ Aluminum Leg destroyed. 00749_ The unstable cave ceiling collapses. 00750_ T-07 Excavator destroyed. 00751_ Mni. Grenade Launcher destroyed. 00752_ Imp. Ion Engine destroyed. 00754_ The unstable cave ceiling collapses. 00754_ Hvy. Assault Rifle destroyed. 00756_ The unstable cave ceiling collapses. 00757_ K-01 Serf collects debris. 00758_ The unstable cave ceiling collapses. 00759_ EM Pulse Gun destroyed. Map ----- +----------------------------------------------------+ | ?????????????????????????????????????????????????? | | ?????????????????????????????????????????????????? | | ?????????????????????????????????????????????????? | | ?????????????????????????????????????????????????? | | ?????????????????????????????????????????????????? | | ?????????????????????????????????????????????????? | | ?????????????????????????????????????????????????? | | ?????????????????????????????????????????????????? | | ?????????????????????????????????????????????????? | | ?????????????????????????????????????????????????? | | ?????????????????????????????????????????????????? | | ?????????????????????????????????????????????????? | | ??????????????????###????????#???????????????????? | | ?????????????????? ##????? #???????????????????? | | ?????????????????? #???? #???????????????????? | | ?????????????????? $ ???? #???????????????????? | | ??????????????????? #??# #???????????????????? | | ???????????????????? ## ##??????????????????? | | ???????????????????? ???????????????????? | | ????????????????????? ???????????????????? | | ?????????????????????? ????????????????????? | | ??????????????????????# ##### ###????????????? | | ?????????????????????## ## #r ##???????????? | | ????????????????????## # | ###?????????? | | ????????????????????# k* ####????????? | | ???????????????????## @ d ###????????? | | ???????????????????## d # ????????? | | ???????????????????# ??????? | | ???????????????????# ##??????? | | ???????????????????# ??????? | | ???????????????????## # ???????? | | ???????????????????### ????????? | | ???????????????????#### ????????? | | ???????????????????## # ## ?????????? | | ???????????????????### ## ##### ??????????? | | ???????????????????### #########????????????? | | ?????????????????###### """ ######??????????????? | | ????????????????###### """ ##??????????????????? | | ????????????????### """ ##??????????????????? | | ????????????????## ###??????????????????? | | ????????????????## ####??????????????????? | | ????????????????### #######???????????????????? | | ????????????????#############????????????????????? | | ?????????????????########????????????????????????? | | ?????????????????????????????????????????????????? | | ?????????????????????????????????????????????????? | | ?????????????????????????????????????????????????? | | ?????????????????????????????????????????????????? | | ?????????????????????????????????????????????????? | | ?????????????????????????????????????????????????? | +----------------------------------------------------+ Best States ------------- Heat Dissipation 38 Energy Generation 12 Energy Capacity 265 Matter Stores 300 Matter Capacity 300 Sight Range 16 Terrain Scan Density 85 Evasion (%) 55 Item Schematics ----------------- None Robot Schematics ------------------ None Fabricated ------------ Nothing Repaired ---------- Aluminum Leg | 37% | -9/Materials Aluminum Leg | 37% | -9/Materials Studied --------- None Alien Tech Used ----------------- None Achievements -------------- None Challenges ------------ None Game ------ Seed SniperSeismicStreamer Manual? 0 Play Time 00:16:15 Cumulative 17.2 hours Start 2026.07.01 @ 20:09:11 End 2026.07.01 @ 20:25:39 Sessions 1 Manual Loads 0 Difficulty Rogue Special Mode None Game No. 23 Rogue 23 Adventurer 0 Explorer 0 Win Type - Total 0 Types 0/0/0/0/0/0/0/0/0/0 Lore% 9 Gallery% 16 Achievement% 15 Wizard Run 0 Options --------- Layout 1 ASCII 0 Keyboard 0 Movement Mouse Keybinds 0 Fullscreen 1 Font 24/Smallcaps Map View 50x35 Zoom Use 0% Tactical HUD 1 Map Filters NONE Filters NONE Steam 1 RUN: e1ae4c80-e5ae-4a68-9389-159d78cbedef